bitfinex/quotes_BTCUSD_20240902
["timestamp","ask_amount","ask_price","bid_price","bid_amount"]
[1725277982955,1.91234089,58622.0,58621.0,0.012987]
[1725277992428,1.91234089,58622.0,58621.0,0.089787]
[1725277993659,1.57117289,58622.0,58621.0,0.089787]
[1725277995746,1.57117289,58622.0,58621.0,0.155287]
[1725277997523,1.54440317,58622.0,58621.0,0.155287]
[1725278000463,1.20323517,58622.0,58621.0,1.404255]
[1725278000842,1.23000295,58622.0,58621.0,1.404255]
[1725278001265,1.57117095,58622.0,58621.0,1.404255]
[1725278002265,14.49617095,58622.0,58621.0,1.404255]
[1725278003596,14.49617095,58622.0,58621.0,1.327455]
[1725278003925,14.83733895,58622.0,58621.0,1.261955]
[1725278005715,14.83733895,58622.0,58621.0,0.012987]
[1725278007219,14.82068032,58622.0,58621.0,0.012987]
[1725278009192,15.16184832,58622.0,58621.0,0.012987]
[1725278009650,15.21300674,58622.0,58621.0,0.012987]
[1725278011193,15.21304689,58622.0,58621.0,0.012987]
[1725278011399,15.16184832,58622.0,58621.0,0.012987]
[1725278012671,15.23864618,58622.0,58621.0,0.012987]
[1725278013086,15.23868011,58622.0,58621.0,0.012987]
[1725278013495,15.16184832,58622.0,58621.0,0.012987]
[1725278014583,15.26429071,58622.0,58621.0,0.012987]
[1725278015010,15.16184832,58622.0,58621.0,0.012987]
[1725278016597,15.28990131,58622.0,58621.0,0.012987]
[1725278017262,15.16184832,58622.0,58621.0,0.012987]
[1725278028086,15.11048881,58622.0,58621.0,0.012987]
[1725278028328,15.28107281,58622.0,58621.0,0.012987]
[1725278028753,15.31101345,58622.0,58621.0,0.012987]
[1725278029175,15.31101345,58622.0,58621.0,0.01258953]
[1725278032211,15.33778367,58622.0,58621.0,0.01258953]
[1725278035090,15.23521781,58622.0,58621.0,0.01258953]
[1725278035317,14.93990121,58622.0,58621.0,0.09558953]
[1725278035531,14.91425696,58622.0,58621.0,0.16178953]
[1725278035731,14.83734139,58622.0,58621.0,0.16178953]
[1725278036837,14.49617339,58622.0,58621.0,0.17796848]
[1725278037059,14.54744772,58622.0,58621.0,0.17796848]
[1725278037265,14.49617339,58622.0,58621.0,0.17796848]
[1725278037712,14.46940317,58622.0,58621.0,0.17796848]
[1725278038351,14.46940317,58622.0,58621.0,0.16178953]
[1725278039216,14.54631874,58622.0,58621.0,0.16178953]
[1725278040995,14.57308783,58622.0,58621.0,0.16178953]
[1725278041454,14.49617226,58622.0,58621.0,0.16178953]
[1725278043053,14.49617226,58622.0,58611.0,0.0004]
[1725278043054,0.51184,58612.0,58611.0,0.0004]
[1725278043286,1.194294,58612.0,58611.0,0.0004]
[1725278043534,1.54263603,58612.0,58611.0,0.0004]
[1725278043763,1.56940884,58612.0,58611.0,0.0004]
[1725278044481,1.68124536,58612.0,58611.0,0.0004]
[1725278044703,1.73067605,58612.0,58611.0,0.0004]
[1725278044963,1.67940088,58612.0,58611.0,0.0004]
[1725278045192,1.75528945,58612.0,58611.0,0.0004]
[1725278045421,2.04524549,58612.0,58611.0,0.0004]
[1725278045655,2.04624549,58612.0,58611.0,0.0044]
[1725278045883,2.04524549,58612.0,58611.0,0.0004]
[1725278046107,2.04524549,58612.0,58611.0,0.0044]
[1725278046402,2.04624549,58612.0,58611.0,0.0044]
[1725278046629,2.04724549,58612.0,58611.0,0.0044]
[1725278047097,1.876935,58606.0,58605.0,0.0760638]
[1725278047592,1.9352982,58606.0,58605.0,0.0760638]
[1725278048298,1.54277367,58606.0,58605.0,0.0760638]
[1725278048536,1.20151267,58606.0,58605.0,0.0760638]
[1725278049253,1.20251267,58606.0,58605.0,0.0760638]
[1725278049685,1.20351267,58606.0,58605.0,0.0760638]
[1725278050829,1.23028674,58606.0,58605.0,0.0760638]
[1725278054954,1.22928674,58606.0,58605.0,0.0760638]
[1725278055179,1.22928674,58606.0,58605.0,0.0780638]
[1725278055819,1.22928674,58606.0,58605.0,0.0745638]
[1725278056038,1.22828674,58606.0,58605.0,0.0745638]
[1725278056697,1.22828674,58606.0,58605.0,0.0136638]
[1725278056974,1.22928674,58606.0,58605.0,0.0266638]
[1725278057195,1.28984899,58606.0,58605.0,0.0266638]
[1725278057642,1.26307492,58606.0,58605.0,0.0266638]
[1725278057865,1.31431567,58606.0,58605.0,0.0266638]
[1725278058318,1.20251267,58606.0,58605.0,0.0266638]
[1725278061051,1.25375342,58606.0,58605.0,0.0266638]
[1725278061269,1.20251267,58606.0,58605.0,0.0266638]
[1725278062615,1.227384,58606.0,58605.0,0.0266638]
[1725278063739,1.227384,58606.0,58605.0,0.1687638]
[1725278063967,1.227384,58606.0,58605.0,0.3393968]
[1725278063968,0.00809967,58606.0,58605.0,0.3393968]
[1725278064657,0.00809967,58606.0,58605.0,0.1687638]
[1725278065121,0.17872967,58606.0,58605.0,0.1687638]
[1725278065347,0.51999067,58606.0,58605.0,0.1687638]
[1725278065822,0.17872967,58606.0,58605.0,0.1687638]
[1725278066031,0.51999067,58606.0,58605.0,0.1687638]
[1725278066894,9.8159472,58595.0,58594.0,0.341331]
[1725278067102,9.8159472,58595.0,58594.0,0.511996]
[1725278067312,9.82210343,58595.0,58594.0,0.876327]
[1725278067754,9.82210343,58595.0,58594.0,0.9639597]
[1725278068183,9.82310343,58595.0,58594.0,0.9759597]
[1725278068397,9.82410343,58595.0,58594.0,0.9889597]
[1725278069015,9.82410343,58595.0,58594.0,0.6476287]
[1725278069366,10.33609243,58595.0,58594.0,0.025]
[1725278069585,10.67741843,58595.0,58594.0,0.025]
[1725278070007,10.67741843,58595.0,58594.0,0.0877]
[1725278070839,10.70419553,58595.0,58594.0,0.0877]
[1725278073074,11.73017353,58595.0,58594.0,0.025]
[1725278073281,11.73017353,58595.0,58582.0,0.008976]
[1725278073282,0.853487,58583.0,58582.0,0.008976]
[1725278073491,1.14620501,58583.0,58582.0,0.008976]
[1725278073913,1.14420501,58583.0,58582.0,0.008976]
[1725278074122,1.17098674,58583.0,58582.0,0.003976]
[1725278074563,1.17198674,58583.0,58582.0,0.004976]
[1725278075004,1.17098674,58583.0,58582.0,0.003976]
[1725278075220,1.17298674,58583.0,58582.0,0.004976]
[1725278075429,1.17298674,58583.0,58582.0,0.003976]
[1725278075667,1.17198674,58583.0,58582.0,0.003976]
[1725278077083,1.17498674,58583.0,58582.0,0.003976]
[1725278077318,1.17298674,58583.0,58582.0,0.003976]
[1725278077542,1.14420501,58583.0,58582.0,0.003976]
[1725278077771,1.14520501,58583.0,58582.0,0.003976]
[1725278078000,1.14820501,58583.0,58582.0,0.003976]
[1725278078238,1.14620501,58583.0,58582.0,0.003976]
[1725278078488,0.80481001,58583.0,58582.0,0.1043736]
[1725278078715,0.80481001,58583.0,58582.0,0.146476]
[1725278078716,0.17974216,58583.0,58582.0,0.146476]
[1725278079182,0.86253216,58583.0,58582.0,0.146476]
[1725278079394,0.86253216,58583.0,58582.0,0.069576]
[1725278080036,0.86253216,58583.0,58582.0,0.003976]
[1725278080252,1.20592716,58583.0,58582.0,0.003976]
[1725278080497,1.20392716,58583.0,58582.0,0.003976]
[1725278080945,1.23071005,58583.0,58582.0,0.003976]
[1725278085629,1.72030505,58583.0,58582.0,0.003976]
[1725278086107,1.71930505,58583.0,58582.0,0.003976]
[1725278086328,2.06270005,58583.0,58582.0,0.003976]
[1725278086543,2.11678761,58583.0,58582.0,0.003976]
[1725278086767,2.11778761,58583.0,58582.0,0.003976]
[1725278087227,2.21778761,58583.0,58582.0,0.003976]
[1725278087685,2.21863476,58583.0,58582.0,0.003976]
[1725278088144,2.2454227,58583.0,58582.0,0.003976]
[1725278090927,1.84894014,58583.0,58582.0,0.003976]
[1725278091151,1.70074014,58583.0,58582.0,0.003976]
[1725278096257,1.70074014,58583.0,58582.0,0.144176]
[1725278096258,1.2317151,58583.0,58582.0,0.144176]
[1725278096671,1.01722005,58583.0,58582.0,0.144176]
[1725278096886,1.18791705,58583.0,58582.0,0.144176]
[1725278098660,0.84652205,58583.0,58582.0,0.144176]
[1725278098883,0.84652205,58583.0,58582.0,0.2585936]
[1725278099040,0.81973411,58583.0,58582.0,0.144176]
[1725278101393,1.16112911,58583.0,58582.0,0.144176]
[1725278101823,0.81973411,58583.0,58582.0,0.144176]
[1725278103631,0.86781407,58583.0,58582.0,0.144176]
[1725278103866,0.01432707,58583.0,58582.0,0.2815936]
[1725278104285,0.18502407,58583.0,58582.0,0.2815936]
[1725278104957,0.18302407,58583.0,58582.0,0.2815936]
[1725278105396,0.01332707,58583.0,58582.0,0.2815936]
[1725278105604,0.01232707,58583.0,58582.0,0.2815936]
[1725278106032,0.01332707,58583.0,58582.0,0.2815936]
[1725278106730,0.01232707,58583.0,58582.0,0.2815936]
[1725278107146,0.01332707,58583.0,58582.0,0.2815936]
[1725278107357,0.01232707,58583.0,58582.0,0.2815936]
[1725278107633,0.18202407,58583.0,58582.0,0.2815936]
[1725278107862,0.18402407,58583.0,58582.0,0.2885936]
[1725278108299,0.18302407,58583.0,58582.0,0.2885936]
[1725278108745,0.18402407,58583.0,58582.0,0.2885936]
[1725278109633,0.52541907,58583.0,58582.0,0.2885936]
[1725278109844,0.18402407,58583.0,58582.0,0.2885936]
[1725278110085,0.52541907,58583.0,58582.0,0.2885936]
[1725278110301,0.18402407,58583.0,58582.0,0.2885936]
[1725278110526,0.514092,58583.0,58582.0,0.2885936]
[1725278110749,0.18403894,58583.0,58582.0,0.2885936]
[1725278110967,0.18392926,58583.0,58582.0,0.2885936]
[1725278111710,0.01323226,58583.0,58582.0,0.2885936]
[1725278111965,0.36816413,58586.0,58582.0,0.1483936]
[1725278112182,0.36816413,58586.0,58584.0,0.0637]
[1725278112183,0.512076,58585.0,58584.0,0.0637]
[1725278112627,0.512076,58585.0,58584.0,0.0867]
[1725278113609,9.8159472,58595.0,58584.0,0.0867]
[1725278113610,0.170672,58592.0,58587.0,0.0751]
[1725278113844,9.8159472,58595.0,58590.0,0.1389]
[1725278114090,0.170672,58592.0,58591.0,0.023]
[1725278114325,0.512015,58592.0,58591.0,0.022]
[1725278114544,0.170672,58592.0,58591.0,0.022]
[1725278114766,0.512014,58592.0,58591.0,0.03071]
[1725278115448,0.88013505,58592.0,58591.0,0.03071]
[1725278116938,0.88013505,58592.0,58591.0,0.09261]
[1725278117151,0.88113505,58592.0,58591.0,0.09261]
[1725278117565,0.854357,58592.0,58591.0,0.09261]
[1725278118049,0.513014,58592.0,58591.0,0.09261]
[1725278118523,0.52627665,58592.0,58591.0,0.09261]
[1725278119617,0.86761965,58592.0,58591.0,0.09261]
[1725278119828,0.52627665,58592.0,58591.0,0.09261]
[1725278120284,0.18493365,58592.0,58591.0,0.09261]
[1725278120496,0.52627665,58592.0,58591.0,0.09261]
[1725278120726,0.21171071,58592.0,58591.0,0.09261]
[1725278121603,0.18493365,58592.0,58591.0,0.09261]
[1725278122221,0.01426265,58592.0,58591.0,0.09261]
[1725278122459,0.18493365,58592.0,58591.0,0.09261]
[1725278123154,0.86761965,58592.0,58591.0,0.0619]
[1725278123407,0.52627665,58592.0,58591.0,0.0619]
[1725278124701,0.55305377,58592.0,58591.0,0.0619]
[1725278127470,0.28541242,58592.0,58591.0,0.0619]
[1725278127707,0.44050741,58592.0,58591.0,0.0756]
[1725278130066,0.18187211,58592.0,58591.0,0.0756]
[1725278130277,0.52321511,58592.0,58591.0,0.0756]
[1725278130748,0.20864904,58592.0,58591.0,0.0756]
[1725278131723,0.54999204,58592.0,58591.0,0.0756]
[1725278131967,0.54999204,58592.0,58591.0,0.0619]
[1725278132166,0.89133504,58592.0,58591.0,0.0619]
[1725278133147,0.170686,58588.0,58587.0,0.0617]
[1725278133350,0.86460287,58588.0,58587.0,0.0617]
[1725278133918,0.86460287,58588.0,58582.0,0.080776]
[1725278133919,0.514092,58583.0,58582.0,0.003976]
[1725278134154,1.28730887,58583.0,58582.0,0.003976]
[1725278134362,1.35270887,58583.0,58582.0,0.003976]
[1725278134571,1.69410387,58583.0,58582.0,0.003976]
[1725278134827,1.72088662,58583.0,58582.0,0.003976]
[1725278135051,1.63968662,58583.0,58582.0,0.07322549]
[1725278135478,1.64168662,58583.0,58582.0,0.07322549]
[1725278136152,1.64268662,58583.0,58582.0,0.07322549]
[1725278136353,1.64368662,58583.0,58582.0,0.07322549]
[1725278136588,1.64368662,58583.0,58582.0,0.003976]
[1725278137034,1.64068662,58583.0,58582.0,0.003976]
[1725278137255,1.63968662,58583.0,58582.0,0.003976]
[1725278137461,1.64268662,58583.0,58582.0,0.003976]
[1725278137679,1.61590387,58583.0,58582.0,0.003976]
[1725278137877,1.61590387,58583.0,58582.0,0.1043736]
[1725278139170,1.55050387,58583.0,58582.0,0.1043736]
[1725278139465,1.20910887,58583.0,58582.0,0.1043736]
[1725278140921,1.23589175,58583.0,58582.0,0.1043736]
[1725278142369,1.23589175,58583.0,58582.0,0.003976]
[1725278142554,1.7555466,58583.0,58582.0,0.003976]
[1725278147730,1.72876372,58583.0,58582.0,0.003976]
[1725278148375,1.67232821,58583.0,58582.0,0.003976]
[1725278148557,1.55250387,58583.0,58582.0,0.003976]
[1725278149004,1.21110887,58583.0,58582.0,0.003976]
[1725278149207,1.21110887,58583.0,58582.0,0.1104036]
[1725278151102,1.82881749,58583.0,58582.0,0.003976]
[1725278151344,2.17021249,58583.0,58582.0,0.003976]
[1725278151547,1.82881749,58583.0,58582.0,0.003976]
[1725278153019,1.538331,58581.0,58580.0,0.96593466]
[1725278153500,1.65592823,58581.0,58580.0,0.96593466]
[1725278153961,1.65392823,58581.0,58580.0,0.96593466]
[1725278154383,1.65592823,58581.0,58580.0,0.96593466]
[1725278154568,2.13833523,58581.0,58580.0,0.96593466]
[1725278158518,1.61359861,58581.0,58580.0,1.06252813]
[1725278158731,1.55049861,58581.0,58580.0,1.06252813]
[1725278159615,1.61317137,58581.0,58580.0,1.06252813]
[1725278160065,1.63841234,58581.0,58580.0,1.06252813]
[1725278160287,1.63841234,58581.0,58580.0,0.96593466]
[1725278160493,1.69001762,58581.0,58580.0,0.96593466]
[1725278160940,1.68801762,58581.0,58580.0,0.96593466]
[1725278162088,1.69001762,58581.0,58580.0,0.96593466]
[1725278169760,2.03142462,58581.0,58580.0,0.96593466]
[1725278170183,2.02942462,58581.0,58580.0,0.96593466]
[1725278170399,2.03142462,58581.0,58580.0,0.96593466]
[1725278172127,1.69001762,58581.0,58580.0,1.06252813]
[1725278172353,1.69001762,58581.0,58580.0,0.96593466]
[1725278173073,2.03142462,58581.0,58580.0,0.96593466]
[1725278174341,2.43683162,58581.0,58580.0,0.96593466]
[1725278174580,2.09542462,58581.0,58580.0,0.96593466]
[1725278175025,2.17592462,58581.0,58580.0,0.96593466]
[1725278175255,2.51733162,58581.0,58580.0,0.96593466]
[1725278175473,2.51533162,58581.0,58580.0,0.96593466]
[1725278177247,2.51533162,58581.0,58566.0,0.0638]
[1725278177248,1.5367,58567.0,58566.0,0.0638]
[1725278177696,1.54782493,58567.0,58566.0,0.0638]
[1725278178153,1.57461326,58567.0,58566.0,0.0638]
[1725278178376,1.23312426,58567.0,58566.0,0.0638]
[1725278178593,1.23312426,58567.0,58566.0,0.1388]
[1725278178594,1.23412426,58567.0,58566.0,0.1388]
[1725278179475,1.25895992,58567.0,58566.0,0.1388]
[1725278179685,1.3229366,58567.0,58566.0,0.1388]
[1725278179901,1.3239366,58567.0,58566.0,0.1388]
[1725278180109,1.3239366,58567.0,58566.0,0.15268]
[1725278181077,1.20833593,58567.0,58566.0,0.15268]
[1725278182662,1.23512383,58567.0,58566.0,0.15268]
[1725278183787,1.23512383,58567.0,58566.0,0.1388]
[1725278194507,0.89363483,58567.0,58566.0,0.1388]
[1725278199031,0.86684693,58567.0,58566.0,0.1388]
[1725278201665,1.20833593,58567.0,58566.0,0.1388]
[1725278202245,0.86684693,58567.0,58566.0,0.1388]
[1725278202447,0.86684693,58567.0,58566.0,0.15880849]
[1725278203720,0.89363433,58567.0,58566.0,0.15880849]
[1725278204135,0.03991233,58567.0,58566.0,0.26258743]
[1725278204552,0.03991233,58567.0,58566.0,0.36512386]
[1725278205187,0.03991233,58567.0,58566.0,0.26258743]
[1725278206028,0.03991233,58567.0,58566.0,0.24571239]
[1725278206478,0.03991233,58567.0,58566.0,0.16880849]
[1725278206698,0.03991233,58567.0,58566.0,0.24571239]
[1725278207163,0.03991233,58567.0,58566.0,0.16880849]
[1725278207382,0.21065633,58567.0,58566.0,0.16880849]
[1725278207587,0.01312493,58567.0,58566.0,0.16880849]
[1725278207791,0.01312493,58567.0,58566.0,0.1488]
[1725278208453,0.52535793,58567.0,58566.0,0.1488]
[1725278208856,0.52535793,58567.0,58566.0,0.20007197]
[1725278209057,0.86684693,58567.0,58566.0,0.19007197]
[1725278209232,0.86684693,58567.0,58566.0,0.1388]
[1725278209449,0.86684693,58567.0,58566.0,0.19007286]
[1725278210200,0.86684693,58567.0,58566.0,0.1388]
[1725278211581,0.69373665,58567.0,58566.0,0.16649822]
[1725278212155,0.86448065,58567.0,58566.0,0.16649822]
[1725278212362,0.86448065,58567.0,58566.0,0.09149822]
[1725278213430,1.20596965,58567.0,58566.0,0.09149822]
[1725278214442,0.86448065,58567.0,58566.0,0.09149822]
[1725278214773,0.86448065,58567.0,58566.0,0.16799822]
[1725278214977,0.86448065,58567.0,58566.0,0.42305002]
[1725278214978,0.01075865,58567.0,58566.0,0.42305002]
[1725278215156,9.01137354,58570.0,58566.0,0.42305002]
[1725278215381,9.01137354,58570.0,58569.0,0.1485]
[1725278215814,8.84063654,58570.0,58569.0,0.1485]
[1725278216256,9.01137154,58570.0,58569.0,0.1485]
[1725278216473,8.84063654,58570.0,58569.0,0.1485]
[1725278216679,8.84163654,58570.0,58569.0,0.1485]
[1725278216895,8.84263654,58570.0,58569.0,0.25644638]
[1725278217088,8.84063654,58570.0,58569.0,0.25644638]
[1725278217527,8.84163654,58570.0,58569.0,0.40770663]
[1725278217738,8.84263654,58570.0,58569.0,0.40870663]
[1725278218829,8.84263654,58570.0,58569.0,0.50248557]
[1725278219236,8.85152186,58570.0,58569.0,0.45122532]
[1725278219664,8.85152186,58570.0,58569.0,0.62196332]
[1725278219898,8.85152186,58570.0,58569.0,0.67322357]
[1725278220101,8.85152186,58570.0,58569.0,0.96344032]
[1725278220644,8.85152186,58570.0,58569.0,0.45122532]
[1725278220853,8.85152186,58570.0,58569.0,0.50243764]
[1725278221617,8.85152186,58570.0,58569.0,0.45122532]
[1725278222582,9.08623354,58570.0,58569.0,0.40865813]
[1725278222800,9.08623354,58570.0,58569.0,0.34744638]
[1725278223002,9.42770454,58570.0,58569.0,0.30071175]
[1725278223677,9.42770454,58570.0,58569.0,0.2495]
[1725278224020,9.42770454,58570.0,58569.0,0.30071175]
[1725278224226,9.42770454,58570.0,58569.0,0.2495]
[1725278224445,9.42770454,58570.0,58569.0,0.34047386]
[1725278225086,9.42770454,58570.0,58569.0,0.28926211]
[1725278225302,9.42770454,58570.0,58569.0,0.34047386]
[1725278225517,9.42770454,58570.0,58569.0,0.28926211]
[1725278225738,9.42770454,58570.0,58569.0,0.34047386]
[1725278226594,9.42770454,58570.0,58569.0,0.28926211]
[1725278226810,9.42770454,58570.0,58569.0,0.34047386]
[1725278227467,9.42770454,58570.0,58569.0,0.28926211]
[1725278229577,9.76917554,58570.0,58569.0,0.20086211]
[1725278230683,9.76917554,58570.0,58567.0,0.03]
[1725278230684,0.853707,58568.0,58567.0,0.03]
[1725278231067,0.86260285,58568.0,58567.0,0.03]
[1725278231980,0.86260285,58568.0,58567.0,0.05404211]
[1725278232195,0.86360285,58568.0,58567.0,0.05504211]
[1725278232413,0.86460285,58568.0,58567.0,0.05504211]
[1725278232891,0.86460285,58568.0,58567.0,0.15504211]
[1725278233782,0.86460285,58568.0,58567.0,0.05504211]
[1725278235513,0.86460285,58568.0,58567.0,0.031]
[1725278239294,0.86460285,58568.0,58567.0,0.011]
[1725278239515,0.86460285,58568.0,58567.0,0.031]
[1725278240357,0.86460285,58568.0,58567.0,0.011]
[1725278240566,0.86460285,58568.0,58567.0,0.031]
[1725278241225,0.86460285,58568.0,58567.0,0.07806872]
[1725278242110,0.18163685,58568.0,58567.0,0.07806872]
[1725278242336,0.35037502,58568.0,58567.0,0.14534728]
[1725278242542,0.17963302,58568.0,58567.0,0.24534728]
[1725278242750,0.170741,58568.0,58567.0,0.24534728]
[1725278242967,0.512224,58568.0,58567.0,0.24534728]
[1725278243795,0.170741,58568.0,58567.0,0.24534728]
[1725278244255,0.170741,58568.0,58567.0,0.19410855]
[1725278244473,0.170741,58568.0,58567.0,0.24535585]
[1725278245376,0.170741,58568.0,58567.0,0.19410855]
[1725278245588,0.170741,58568.0,58567.0,0.17410855]
[1725278245715,0.170741,58568.0,58567.0,0.19410855]
[1725278247120,0.512224,58568.0,58567.0,0.19410855]
[1725278247531,0.512224,58568.0,58567.0,0.19411422]
[1725278247946,0.170741,58568.0,58567.0,0.17806872]
[1725278248155,0.512224,58568.0,58567.0,0.19411405]
[1725278249017,0.853707,58568.0,58567.0,0.19411405]
[1725278249481,0.853707,58568.0,58567.0,0.14540484]
[1725278249691,0.853707,58568.0,58567.0,0.24540596]
[1725278249901,0.853707,58568.0,58567.0,0.19411405]
[1725278250115,0.853707,58568.0,58567.0,0.24540609]
[1725278250321,0.853707,58568.0,58567.0,0.22540609]
[1725278250533,0.853707,58568.0,58567.0,0.24540609]
[1725278250763,0.853707,58568.0,58567.0,0.19411405]
[1725278251029,0.853707,58568.0,58567.0,0.09411405]
[1725278251263,0.853707,58568.0,58567.0,0.2293633]
[1725278251462,0.853707,58568.0,58567.0,0.19411499]
[1725278251696,0.853707,58568.0,58567.0,0.14704627]
[1725278252108,0.853707,58568.0,58567.0,0.18229217]
[1725278252315,0.853707,58568.0,58567.0,0.10793818]
[1725278252528,0.853707,58568.0,58567.0,0.22398445]
[1725278252740,0.853707,58568.0,58567.0,0.20793818]
[1725278252989,0.853707,58568.0,58567.0,0.26320132]
[1725278253209,0.853707,58568.0,58567.0,0.24715505]
[1725278253413,0.853707,58568.0,58567.0,0.26320132]
[1725278253614,0.853707,58568.0,58567.0,0.24715505]
[1725278253823,0.853707,58568.0,58567.0,0.26320132]
[1725278254049,0.853707,58568.0,58567.0,0.2632044]
[1725278254953,0.853707,58568.0,58567.0,0.26320535]
[1725278255375,0.853707,58568.0,58567.0,0.24715908]
[1725278255554,0.853707,58568.0,58567.0,0.18626314]
[1725278255802,0.853707,58568.0,58567.0,0.08626314]
[1725278257668,0.853707,58568.0,58567.0,0.08626298]
[1725278257902,0.853707,58568.0,58567.0,0.16322319]
[1725278258127,0.853707,58568.0,58567.0,0.17021687]
[1725278258338,0.853707,58568.0,58567.0,0.1862629]
[1725278259934,0.853707,58568.0,58567.0,0.07021687]
[1725278260143,0.853707,58568.0,58567.0,0.0862629]
[1725278260343,0.853707,58568.0,58567.0,0.1862629]
[1725278261009,0.853707,58568.0,58567.0,0.18626477]
[1725278261440,0.853707,58568.0,58567.0,0.17021687]
[1725278261855,0.853707,58568.0,58567.0,0.18626512]
[1725278262080,0.853707,58568.0,58567.0,0.17021687]
[1725278262282,0.853707,58568.0,58567.0,0.24721089]
[1725278262701,0.853707,58568.0,58567.0,0.22721089]
[1725278262911,0.853707,58568.0,58567.0,0.24721089]
[1725278263810,0.853707,58568.0,58567.0,0.17021687]
[1725278264239,0.853707,58568.0,58567.0,0.07021687]
[1725278265489,0.853707,58568.0,58567.0,0.05021687]
[1725278265698,0.853707,58568.0,58567.0,0.07021687]
[1725278268723,0.91768368,58568.0,58567.0,0.07021687]
[1725278269628,0.91768368,58568.0,58567.0,0.14722972]
[1725278269836,0.91768368,58568.0,58567.0,0.24722972]
[1725278272808,0.91768368,58568.0,58567.0,0.17021687]
[1725278273018,0.91768368,58568.0,58567.0,0.07021687]
[1725278273216,0.91768368,58568.0,58567.0,0.17021687]
[1725278273423,0.91768368,58568.0,58567.0,0.18626603]
[1725278273629,0.91768368,58568.0,58567.0,0.17021687]
[1725278274255,0.94446889,58568.0,58567.0,0.07021687]
[1725278274461,0.94446889,58568.0,58567.0,0.08626603]
[1725278274669,0.94446889,58568.0,58567.0,0.18626603]
[1725278274872,0.94446889,58568.0,58567.0,0.17021687]
[1725278275331,1.28595189,58568.0,58567.0,0.18626978]
[1725278276698,1.28595189,58568.0,58567.0,0.17626978]
[1725278276880,1.34655189,58568.0,58567.0,0.24328182]
[1725278277086,1.34655189,58568.0,58567.0,0.17626978]
[1725278277322,1.31976668,58568.0,58567.0,0.18626978]
[1725278277530,1.31976668,58568.0,58567.0,0.24328197]
[1725278278355,1.31976668,58568.0,58567.0,0.17626978]
[1725278278574,1.31976668,58568.0,58567.0,0.15328205]
[1725278278772,1.31976668,58568.0,58567.0,0.26328205]
[1725278279059,4.33617884,58569.0,58567.0,0.26328205]
[1725278279060,4.50691884,58569.0,58568.0,0.01]
[1725278279276,4.84839584,58569.0,58568.0,0.07901226]
[1725278279478,4.84839584,58569.0,58568.0,0.18166937]
[1725278279691,4.50691884,58569.0,58568.0,0.18166937]
[1725278279951,4.84839584,58569.0,58568.0,0.07901226]
[1725278280365,4.84939584,58569.0,58568.0,0.07901226]
[1725278280800,4.50791884,58569.0,58568.0,0.07901226]
[1725278281003,4.85039384,58569.0,58568.0,0.08001226]
[1725278281220,4.85039384,58569.0,58568.0,0.08001065]
[1725278282964,4.50891684,58569.0,58568.0,0.08001065]
[1725278284543,4.33817884,58569.0,58568.0,0.25075165]
[1725278284750,4.33817884,58569.0,58568.0,0.77303465]
[1725278285196,4.33817884,58569.0,58568.0,1.11451765]
[1725278285401,4.33817884,58569.0,58568.0,1.19261765]
[1725278285612,4.33817884,58569.0,58568.0,0.85113465]
[1725278285834,4.33717884,58569.0,58568.0,0.85013465]
[1725278286045,4.33717884,58569.0,58568.0,1.19161765]
[1725278286278,4.33717884,58569.0,58568.0,1.89161765]
[1725278286709,4.33817884,58569.0,58568.0,1.89261765]
[1725278286933,4.33717884,58569.0,58568.0,1.89261765]
[1725278287366,4.33817884,58569.0,58568.0,1.90561765]
[1725278287802,4.33717884,58569.0,58568.0,1.89261765]
[1725278288042,4.33617884,58569.0,58568.0,1.87556758]
[1725278288248,4.33617884,58569.0,58568.0,1.91961311]
[1725278288467,4.33617884,58569.0,58568.0,1.90356758]
[1725278288692,4.33617884,58569.0,58568.0,1.91961305]
[1725278289376,4.33617884,58569.0,58568.0,1.9196129]
[1725278292099,4.33617884,58569.0,58568.0,1.5781299]
[1725278292345,4.50691684,58569.0,58568.0,1.0551267]
[1725278292558,4.50691684,58569.0,58568.0,1.03908138]
[1725278293002,4.50691684,58569.0,58568.0,1.01345103]
[1725278293436,4.33617884,58569.0,58568.0,1.01345103]
[1725278293658,4.50691684,58569.0,58568.0,0.21096058]
[1725278293880,4.53369959,58569.0,58568.0,0.21096058]
[1725278294561,4.87517659,58569.0,58568.0,0.21096058]
[1725278295243,5.62350672,58569.0,58568.0,0.21487837]
[1725278295546,5.67757394,58569.0,58568.0,0.138]
[1725278295766,5.21665359,58569.0,58568.0,0.10925636]
[1725278295993,5.21665359,58569.0,58568.0,0.158]
[1725278296221,5.21665359,58569.0,58568.0,0.21111478]
[1725278296446,5.21665359,58569.0,58568.0,0.19711478]
[1725278297351,5.21765359,58569.0,58568.0,0.20911478]
[1725278297803,5.21765359,58569.0,58568.0,0.19511478]
[1725278298066,5.21865359,58569.0,58568.0,0.10811478]
[1725278298304,5.21865359,58569.0,58568.0,0.20811478]
[1725278299472,5.21865359,58569.0,58568.0,0.25937292]
[1725278304042,5.21865359,58569.0,58568.0,0.23937292]
[1725278304261,5.21865359,58569.0,58568.0,0.25937292]
[1725278307314,5.21865359,58569.0,58568.0,0.23937292]
[1725278307531,5.21865359,58569.0,58568.0,0.25937292]
[1725278308359,5.21865359,58569.0,58568.0,0.25936798]
[1725278310119,5.21865359,58569.0,58568.0,0.20811478]
[1725278310538,4.37245454,58569.0,58568.0,0.155]
[1725278310818,4.37245454,58569.0,58568.0,0.80900294]
[1725278311026,4.37245454,58569.0,58568.0,1.25048594]
[1725278311442,4.37245454,58569.0,58568.0,1.95048594]
[1725278311647,4.37245454,58569.0,58568.0,3.37263758]
[1725278312146,4.37145454,58569.0,58568.0,3.36063758]
[1725278312335,4.37045454,58569.0,58568.0,3.36163758]
[1725278312658,4.37145454,58569.0,58568.0,3.37463758]
[1725278312880,4.07039279,58569.0,58568.0,3.34763758]
[1725278313090,4.07039279,58569.0,58568.0,2.66163758]
[1725278313304,4.07139279,58569.0,58568.0,2.67463758]
[1725278314697,4.07139279,58569.0,58568.0,2.77709012]
[1725278316041,4.07139279,58569.0,58568.0,3.38331118]
[1725278316255,4.07139279,58569.0,58568.0,2.79412412]
[1725278316467,4.07139279,58569.0,58568.0,3.03315458]
[1725278316684,4.07139279,58569.0,58568.0,3.13560712]
[1725278316893,4.07139279,58569.0,58568.0,2.55234518]
[1725278317160,4.07139279,58569.0,58568.0,2.47538312]
[1725278317585,4.07139279,58569.0,58568.0,1.77538312]
[1725278317799,4.07139279,58569.0,58568.0,1.94613399]
[1725278319189,4.07139279,58569.0,58568.0,2.64613399]
[1725278321500,4.07139279,58569.0,58568.0,1.94613399]
[1725278321701,4.07139279,58569.0,58568.0,2.01461299]